bitfinex/quotes_BTCUSD_20240918
["timestamp","ask_amount","ask_price","bid_price","bid_amount"]
[1726632484430,0.001648,60617.0,60616.0,0.80843951]
[1726632484666,0.003648,60617.0,60616.0,0.82843951]
[1726632485151,0.003648,60617.0,60616.0,0.87780997]
[1726632485384,0.003648,60617.0,60616.0,0.82843951]
[1726632486137,0.002648,60617.0,60616.0,0.81743951]
[1726632486352,0.002648,60617.0,60616.0,0.82043951]
[1726632486569,0.003648,60617.0,60616.0,0.83143951]
[1726632487479,0.003648,60617.0,60616.0,0.90549571]
[1726632490292,0.003648,60617.0,60616.0,0.83143951]
[1726632491469,0.003648,60617.0,60616.0,1.16138451]
[1726632491930,0.003648,60617.0,60616.0,0.68071623]
[1726632492154,0.003648,60617.0,60616.0,0.83143951]
[1726632492380,0.003648,60617.0,60616.0,0.93025312]
[1726632493039,0.002648,60617.0,60616.0,0.58930812]
[1726632493476,0.003648,60617.0,60616.0,0.60030812]
[1726632493691,0.002648,60617.0,60616.0,0.58830812]
[1726632493934,0.001648,60617.0,60616.0,0.57730812]
[1726632494154,0.003648,60617.0,60616.0,0.60030812]
[1726632494867,0.003648,60617.0,60616.0,0.50149451]
[1726632495108,0.003648,60617.0,60616.0,0.60030812]
[1726632496045,0.003648,60617.0,60616.0,0.6003698]
[1726632496705,0.003648,60617.0,60616.0,0.9303148]
[1726632497413,0.003648,60617.0,60616.0,0.95503363]
[1726632498602,0.003648,60617.0,60616.0,0.47436535]
[1726632498813,0.003648,60617.0,60616.0,0.62508863]
[1726632499252,0.003648,60617.0,60616.0,0.50149451]
[1726632499728,0.003648,60617.0,60616.0,0.83143951]
[1726632502484,0.003648,60617.0,60616.0,0.83226351]
[1726632504094,0.003648,60617.0,60616.0,1.16220851]
[1726632505209,0.003648,60617.0,60616.0,1.01148523]
[1726632505418,0.003648,60617.0,60616.0,1.16220851]
[1726632506088,0.003648,60617.0,60616.0,1.11039824]
[1726632507757,0.003648,60617.0,60616.0,0.18687767]
[1726632507998,0.01660306,60617.0,60616.0,0.023824]
[1726632508227,0.003648,60617.0,60616.0,0.023824]
[1726632508466,0.01656668,60617.0,60616.0,0.14763395]
[1726632508698,0.003648,60617.0,60616.0,0.14763395]
[1726632508949,0.01656668,60617.0,60616.0,0.14763395]
[1726632509186,0.003648,60617.0,60616.0,0.14763395]
[1726632509679,0.01656668,60617.0,60616.0,0.14763395]
[1726632511586,0.003648,60617.0,60616.0,0.14763395]
[1726632512288,0.168618,60617.0,60616.0,0.14763395]
[1726632512717,0.18153668,60617.0,60616.0,0.023824]
[1726632516266,0.51147668,60617.0,60616.0,0.023824]
[1726632518651,0.84141668,60617.0,60616.0,0.023824]
[1726632518870,0.51147668,60617.0,60616.0,0.023824]
[1726632519333,0.51147668,60617.0,60616.0,0.12286475]
[1726632520008,0.51147668,60617.0,60616.0,0.22177776]
[1726632520879,0.53735909,60617.0,60616.0,0.22177776]
[1726632521281,0.53735909,60617.0,60616.0,0.12273701]
[1726632521945,0.53735909,60617.0,60616.0,0.1970162]
[1726632522850,0.7816069,60615.0,60614.0,0.09903786]
[1726632523080,0.7816069,60615.0,60614.0,0.33624409]
[1726632523315,0.79449217,60615.0,60614.0,0.33624409]
[1726632524002,0.79449217,60615.0,60614.0,0.34824409]
[1726632524225,0.79449217,60615.0,60614.0,0.36124409]
[1726632524653,1.12444317,60615.0,60614.0,0.26233108]
[1726632525132,0.79449217,60615.0,60614.0,0.26233108]
[1726632525342,0.79449217,60615.0,60614.0,0.18805367]
[1726632525562,1.12444317,60615.0,60614.0,0.18805367]
[1726632525775,0.79449217,60615.0,60614.0,0.18805367]
[1726632526426,0.79449217,60615.0,60614.0,0.18887767]
[1726632531636,0.79449217,60615.0,60614.0,0.28791553]
[1726632531869,0.79449217,60615.0,60614.0,0.18887767]
[1726632532078,0.79449217,60615.0,60614.0,0.28791553]
[1726632532714,0.29956617,60615.0,60614.0,0.18887767]
[1726632534532,0.29956617,60615.0,60614.0,0.35385567]
[1726632534987,0.29956617,60615.0,60614.0,0.18887767]
[1726632538560,0.29956617,60615.0,60614.0,0.35385567]
[1726632541471,0.29956617,60615.0,60614.0,0.68381167]
[1726632541690,0.29956617,60615.0,60614.0,0.35385567]
[1726632543103,0.29956617,60615.0,60614.0,0.18887767]
[1726632545464,0.32992,60621.0,60614.0,0.18887767]
[1726632545465,0.499731,60638.0,60623.0,0.03]
[1726632545702,0.24746146,60633.0,60632.0,0.164929]
[1726632545931,0.00131818,60639.0,60632.0,0.42701584]
[1726632546172,0.16622818,60639.0,60636.0,0.04951373]
[1726632546398,0.16622818,60639.0,60638.0,0.09891301]
[1726632547838,0.16622818,60639.0,60635.0,0.09891301]
[1726632547839,0.164913,60638.0,60635.0,0.09891301]
[1726632548350,0.00131818,60639.0,60636.0,0.16305367]
[1726632548641,0.00231818,60639.0,60638.0,0.26382601]
[1726632548848,0.00231818,60639.0,60638.0,0.75670568]
[1726632548849,0.00131818,60639.0,60638.0,0.75670568]
[1726632549105,0.00131818,60639.0,60638.0,1.13597994]
[1726632549343,0.00131818,60639.0,60638.0,1.08853168]
[1726632549815,0.00131818,60639.0,60638.0,1.1626546]
[1726632550544,0.00131818,60639.0,60638.0,1.13792183]
[1726632550773,0.00131818,60639.0,60638.0,1.13992183]
[1726632551011,0.00131818,60639.0,60638.0,1.49974783]
[1726632551301,0.00131818,60639.0,60638.0,2.04152189]
[1726632551541,0.00131818,60639.0,60638.0,2.14734221]
[1726632551790,0.001646,60659.0,60658.0,0.59348801]
[1726632552043,0.001646,60659.0,60658.0,0.80813159]
[1726632552266,0.001646,60659.0,60658.0,0.47841459]
[1726632552936,0.001646,60659.0,60658.0,1.17584859]
[1726632553378,0.001646,60659.0,60658.0,1.16784859]
[1726632553605,0.001646,60659.0,60658.0,0.47841459]
[1726632553861,0.001646,60659.0,60658.0,0.48541459]
[1726632554080,0.001646,60659.0,60658.0,0.17005367]
[1726632554310,0.001646,60659.0,60658.0,0.16305367]
[1726632554532,0.01031592,60659.0,60658.0,0.17205367]
[1726632554751,0.01031592,60659.0,60658.0,0.18005367]
[1726632554978,0.01031592,60659.0,60658.0,0.008]
[1726632554979,0.50488192,60659.0,60658.0,0.008]
[1726632555219,0.50488192,60659.0,60641.0,1.2659]
[1726632555220,0.0789,60658.0,60641.0,1.2659]
[1726632555451,0.0789,60658.0,60642.0,0.16305367]
[1726632555673,0.15050292,60657.0,60641.0,0.16305367]
[1726632555943,0.16489,60647.0,60641.0,0.16305367]
[1726632556183,0.164884,60649.0,60641.0,0.16305367]
[1726632556413,0.00870922,60648.0,60642.0,0.1649]
[1726632556630,0.00870922,60648.0,60643.0,0.164899]
[1726632556847,0.164886,60648.0,60643.0,0.164899]
[1726632557070,0.00883264,60647.0,60643.0,0.164899]
[1726632557294,0.00883264,60647.0,60644.0,0.16305367]
[1726632558682,0.00883264,60647.0,60644.0,0.17605367]
[1726632561627,0.01048064,60647.0,60644.0,0.17605367]
[1726632561864,0.01048064,60647.0,60644.0,0.34094967]
[1726632563004,0.01048064,60647.0,60645.0,0.164893]
[1726632563649,0.01048064,60647.0,60646.0,0.32794467]
[1726632563854,0.01048064,60647.0,60646.0,0.98750867]
[1726632564194,0.001648,60647.0,60646.0,1.34729067]
[1726632564422,0.001648,60647.0,60646.0,1.34929067]
[1726632564679,0.001648,60647.0,60646.0,1.50929067]
[1726632565124,0.001648,60647.0,60646.0,1.56442147]
[1726632565356,0.001648,60647.0,60646.0,1.51529067]
[1726632566055,0.001648,60647.0,60646.0,1.52829067]
[1726632566502,0.001648,60647.0,60646.0,1.51529067]
[1726632566945,0.001648,60647.0,60646.0,1.52329067]
[1726632567132,0.001648,60647.0,60646.0,1.53529067]
[1726632567575,0.001648,60647.0,60646.0,2.83832147]
[1726632568025,0.001648,60647.0,60646.0,2.85232147]
[1726632568430,0.001648,60647.0,60646.0,2.83832147]
[1726632568640,0.001648,60647.0,60646.0,2.82432147]
[1726632568853,0.001648,60647.0,60646.0,2.83832147]
[1726632569081,0.001648,60647.0,60646.0,2.85232147]
[1726632571272,0.001648,60647.0,60646.0,2.80319067]
[1726632572657,0.001648,60647.0,60646.0,2.87688688]
[1726632574412,0.001648,60647.0,60646.0,2.80319067]
[1726632575589,0.001648,60647.0,60646.0,2.90145228]
[1726632575799,0.001648,60647.0,60646.0,2.80319067]
[1726632575994,0.001648,60647.0,60646.0,2.90145228]
[1726632577436,0.001648,60647.0,60646.0,2.80319067]
[1726632577903,0.001648,60647.0,60646.0,2.90140032]
[1726632578118,0.001648,60647.0,60646.0,2.80319067]
[1726632578322,0.001648,60647.0,60646.0,2.92601769]
[1726632578574,0.001648,60647.0,60646.0,2.80319067]
[1726632578787,0.001648,60647.0,60646.0,2.92601769]
[1726632579004,0.001648,60647.0,60646.0,2.80319067]
[1726632579235,0.001648,60647.0,60646.0,2.92601769]
[1726632580142,0.001648,60647.0,60646.0,2.59423569]
[1726632580341,0.001648,60647.0,60646.0,2.05162667]
[1726632581102,0.001648,60647.0,60646.0,2.03762667]
[1726632581322,0.001648,60647.0,60646.0,2.16045369]
[1726632581540,0.001648,60647.0,60646.0,2.14645369]
[1726632581993,0.001648,60647.0,60646.0,2.12762667]
[1726632582232,0.001648,60647.0,60646.0,2.42740867]
[1726632582470,0.001648,60647.0,60646.0,2.50423569]
[1726632582905,0.001648,60647.0,60646.0,2.53423569]
[1726632583392,0.001648,60647.0,60646.0,1.45695367]
[1726632583625,0.001648,60647.0,60646.0,1.72016851]
[1726632584078,0.001648,60647.0,60646.0,1.72216851]
[1726632584304,0.001648,60647.0,60646.0,1.62384467]
[1726632584536,0.001648,60647.0,60646.0,1.95362667]
[1726632585262,0.001648,60647.0,60646.0,2.07645369]
[1726632585509,0.001648,60647.0,60646.0,2.07445369]
[1726632585759,0.001648,60647.0,60646.0,1.41672702]
[1726632586021,0.496313,60647.0,60646.0,1.36770681]
[1726632586267,0.50407976,60647.0,60646.0,1.34310777]
[1726632586505,0.50407976,60647.0,60646.0,1.2939]
[1726632586734,0.17430276,60647.0,60646.0,1.2939]
[1726632587708,0.20017274,60647.0,60646.0,1.2939]
[1726632588725,0.20017274,60647.0,60646.0,1.34310777]
[1726632589450,0.17430276,60647.0,60646.0,1.34310777]
[1726632589689,0.17430276,60647.0,60646.0,1.36770681]
[1726632589934,0.00941476,60647.0,60646.0,1.50808533]
[1726632590183,0.00941476,60647.0,60646.0,1.34319791]
[1726632590429,0.001648,60647.0,60646.0,1.2939]
[1726632590678,0.00941106,60647.0,60646.0,1.36770681]
[1726632590914,0.001648,60647.0,60646.0,1.36770681]
[1726632591413,0.001648,60647.0,60646.0,0.028]
[1726632591643,0.00940374,60647.0,60646.0,0.028]
[1726632592356,0.00940374,60647.0,60646.0,0.10204349]
[1726632592587,0.00940374,60647.0,60646.0,0.028]
[1726632593275,0.00940374,60647.0,60646.0,0.10206508]
[1726632593504,0.00940374,60647.0,60646.0,0.028]
[1726632594470,0.00940374,60647.0,60646.0,0.10209006]
[1726632594695,0.00940374,60647.0,60646.0,0.028]
[1726632595410,0.00940374,60647.0,60646.0,0.10211823]
[1726632598052,0.17429174,60647.0,60646.0,0.10211823]
[1726632599509,0.50406874,60647.0,60646.0,0.10213852]
[1726632599747,0.50406874,60647.0,60646.0,0.10214279]
[1726632600471,0.50406874,60647.0,60646.0,0.028]
[1726632600706,0.17429174,60647.0,60646.0,0.028]
[1726632601088,0.50406874,60647.0,60646.0,0.028]
[1726632601305,0.83384574,60647.0,60646.0,0.028]
[1726632601921,0.83384574,60647.0,60646.0,0.014]
[1726632602122,0.164896,60644.0,60643.0,0.04943424]
[1726632602743,0.17257946,60644.0,60643.0,0.04943424]
[1726632603272,0.50237246,60644.0,60643.0,0.04943424]
[1726632603707,0.50237246,60644.0,60643.0,0.06343424]
[1726632604007,0.50237246,60644.0,60643.0,0.014]
[1726632607238,0.50237246,60644.0,60643.0,0.028]
[1726632610910,0.00768346,60644.0,60643.0,0.12686538]
[1726632611289,0.166538,60647.0,60643.0,0.12686538]
[1726632611518,0.001648,60647.0,60646.0,0.09886538]
[1726632611983,0.166536,60647.0,60646.0,0.09886538]
[1726632612207,0.17415816,60647.0,60646.0,0.09886538]
[1726632612661,0.17415816,60647.0,60646.0,0.11286538]
[1726632612908,0.50393516,60647.0,60646.0,0.014]
[1726632613803,0.50393516,60647.0,60646.0,0.027]
[1726632614993,0.50217679,60647.0,60646.0,0.027]
[1726632617757,0.00762216,60647.0,60646.0,0.027]
[1726632617990,0.329743,60654.0,60646.0,0.356782]
[1726632617991,0.32974,60654.0,60646.0,0.356782]
[1726632618205,0.329746,60653.0,60647.0,0.15061738]
[1726632618451,0.164881,60650.0,60646.0,0.07640029]
[1726632618870,0.164881,60650.0,60646.0,0.027]
[1726632619092,0.164881,60650.0,60645.0,0.21429329]
[1726632619329,0.164881,60650.0,60647.0,0.008]
[1726632619559,0.164881,60650.0,60646.0,0.006]
[1726632619775,0.164881,60650.0,60645.0,0.37734696]
[1726632619776,0.001646,60647.0,60645.0,0.37734696]
[1726632620012,0.001646,60647.0,60646.0,0.021]
[1726632620458,0.001646,60647.0,60646.0,0.011]
[1726632621770,0.001646,60647.0,60645.0,0.17605367]
[1726632621986,0.001646,60647.0,60646.0,0.014]
[1726632622642,0.001646,60647.0,60646.0,0.027]
[1726632624448,0.166534,60647.0,60646.0,0.027]
[1726632624712,0.496311,60647.0,60646.0,0.027]
[1726632626832,0.5039545,60647.0,60646.0,0.027]
[1726632627908,0.1741775,60647.0,60646.0,0.027]
[1726632629429,0.1741775,60647.0,60646.0,0.07645435]
[1726632631520,0.1741775,60647.0,60646.0,0.027]
[1726632631932,0.18278339,60647.0,60646.0,0.027]
[1726632632133,0.18278339,60647.0,60646.0,0.027823]
[1726632633877,0.51256039,60647.0,60646.0,0.027823]
[1726632634673,0.18278339,60647.0,60646.0,0.027823]
[1726632636324,0.18278339,60647.0,60646.0,0.10205685]
[1726632639016,0.01789539,60647.0,60646.0,0.12680146]
[1726632643284,0.01789539,60647.0,60646.0,0.11383855]
[1726632643505,0.01789539,60647.0,60646.0,0.014823]
[1726632643712,0.01789539,60647.0,60646.0,0.027823]
[1726632643928,0.01789539,60647.0,60646.0,0.013823]
[1726632644171,0.01789539,60647.0,60646.0,0.027823]
[1726632644401,0.01789539,60647.0,60646.0,0.013823]
[1726632644912,0.01789539,60647.0,60646.0,0.45791065]
[1726632645162,0.01789539,60647.0,60646.0,0.72201286]
[1726632645410,0.001646,60647.0,60646.0,0.73801286]
[1726632645640,0.001646,60647.0,60646.0,0.97539631]
[1726632645857,0.001646,60647.0,60646.0,0.94331683]
[1726632646099,0.001646,60647.0,60646.0,0.96139631]
[1726632646361,0.001646,60647.0,60646.0,0.95731683]
[1726632646614,0.001646,60647.0,60646.0,0.73801286]
[1726632646835,0.001646,60647.0,60646.0,0.72401286]
[1726632647530,0.001646,60647.0,60646.0,1.69935886]
[1726632647756,0.001646,60647.0,60646.0,1.71335886]
[1726632648200,0.001646,60647.0,60646.0,1.72735886]
[1726632648425,0.001646,60647.0,60646.0,1.7371746]
[1726632648656,0.001646,60647.0,60646.0,1.7231746]
[1726632648932,0.001646,60647.0,60646.0,1.7371746]
[1726632651741,0.001646,60647.0,60646.0,1.59651367]
[1726632651955,0.001646,60647.0,60646.0,1.30557686]
[1726632652169,0.001646,60647.0,60646.0,1.33557686]
[1726632652387,0.001646,60647.0,60646.0,1.33757686]
[1726632652603,0.001646,60647.0,60646.0,1.39757686]
[1726632652820,0.001646,60647.0,60646.0,1.72735886]
[1726632655288,0.001646,60647.0,60646.0,1.21517686]
[1726632655499,0.001646,60647.0,60646.0,1.24717686]
[1726632657248,0.001646,60647.0,60646.0,1.57695886]
[1726632657462,0.001646,60647.0,60646.0,1.24717686]
[1726632658588,0.001646,60647.0,60646.0,1.57695886]
[1726632659268,0.001646,60647.0,60646.0,1.63695886]
[1726632661670,0.001646,60647.0,60646.0,1.78515556]
[1726632662174,0.001646,60647.0,60646.0,1.78376977]
[1726632662662,0.001646,60647.0,60646.0,1.63557307]
[1726632663580,0.001646,60647.0,60646.0,1.78376977]
[1726632664509,0.001646,60647.0,60646.0,1.72376977]
[1726632664752,0.001646,60647.0,60646.0,1.78376977]
[1726632667663,0.001646,60647.0,60646.0,1.78459277]
[1726632669948,0.001646,60647.0,60646.0,1.63639607]
[1726632670399,0.001646,60647.0,60646.0,1.53755088]
[1726632670642,0.001646,60647.0,60646.0,1.63639607]
[1726632671276,0.001646,60647.0,60646.0,1.53755088]
[1726632671520,0.001646,60647.0,60646.0,1.63639607]
[1726632672037,0.001646,60647.0,60646.0,1.80246197]
[1726632672668,0.001646,60647.0,60646.0,1.74246197]
[1726632672881,0.001646,60647.0,60646.0,1.80246197]
[1726632676009,0.001646,60647.0,60646.0,1.80246409]
[1726632676489,0.001646,60647.0,60646.0,1.80249252]
[1726632676970,0.001646,60647.0,60646.0,1.92409498]
[1726632677217,0.001646,60647.0,60646.0,1.74831298]
[1726632679897,0.001646,60647.0,60646.0,1.74837464]
[1726632680382,0.001646,60647.0,60646.0,2.13801093]
[1726632680643,0.001646,60647.0,60646.0,2.3568049]
[1726632681209,0.001646,60647.0,60646.0,2.3288049]
[1726632681391,0.001646,60659.0,60658.0,1.25485419]
[1726632681620,0.001646,60659.0,60658.0,1.57143577]
[1726632681838,0.001646,60659.0,60658.0,1.57143554]
[1726632682520,0.001646,60659.0,60658.0,1.44059035]
[1726632682762,0.001646,60659.0,60658.0,1.53943554]
[1726632683195,0.001646,60659.0,60658.0,1.58543554]
[1726632683413,0.001646,60659.0,60658.0,1.55543554]
[1726632683638,0.001646,60659.0,60658.0,1.58543554]
[1726632683859,0.001646,60659.0,60658.0,1.59943554]
[1726632684548,0.001646,60659.0,60658.0,1.44590786]
[1726632684764,0.001646,60659.0,60658.0,1.46190786]
[1726632684991,0.001646,60659.0,60658.0,1.47590786]
[1726632688610,0.001646,60659.0,60658.0,1.46190786]
[1726632689026,0.001646,60659.0,60658.0,1.47590786]
[1726632689462,0.001646,60659.0,60658.0,1.46190786]
[1726632690315,0.001646,60659.0,60658.0,1.61014108]
[1726632690520,0.001646,60659.0,60658.0,1.62414108]
[1726632691340,0.001646,60659.0,60658.0,1.60814108]
[1726632691542,0.001646,60659.0,60658.0,1.59414108]
[1726632691745,0.001646,60659.0,60658.0,1.60814108]
[1726632692179,0.001646,60659.0,60658.0,1.62414108]
[1726632695463,0.001646,60659.0,60658.0,1.47590786]
[1726632696737,0.001646,60659.0,60658.0,1.01534567]
[1726632696951,0.001646,60659.0,60658.0,0.68562867]
[1726632697392,0.001646,60659.0,60658.0,0.35591167]
[1726632697619,0.01529862,60659.0,60658.0,0.35591167]
[1726632697839,0.001646,60659.0,60658.0,0.35591167]
[1726632698051,0.01529862,60659.0,60658.0,0.028]
[1726632698260,0.001646,60659.0,60658.0,0.028]
[1726632698467,0.01529862,60659.0,60658.0,0.028]
[1726632698687,0.001646,60659.0,60658.0,0.028]
[1726632698912,0.01529862,60659.0,60658.0,0.028]
[1726632699133,0.001646,60659.0,60658.0,0.028]
[1726632699389,0.01529862,60659.0,60658.0,0.028]
[1726632700323,0.04116297,60659.0,60658.0,0.028]
[1726632701226,0.04116297,60659.0,60658.0,0.192858]
[1726632702672,0.01529862,60659.0,60658.0,0.192858]
[1726632704301,0.01529862,60659.0,60658.0,0.35591167]
[1726632704431,0.00529862,60659.0,60658.0,0.35591167]
[1726632704649,0.00990554,60659.0,60658.0,0.35591167]
[1726632704858,0.0913,60661.0,60659.0,0.164854]
[1726632705072,0.0913,60661.0,60660.0,0.12369687]
[1726632705311,0.0913,60661.0,60659.0,0.32790767]
[1726632705955,0.0913,60661.0,60659.0,0.34190767]
[1726632707140,0.0913,60661.0,60660.0,0.164853]
[1726632707813,0.0913,60661.0,60660.0,0.178853]
[1726632708498,0.0913,60661.0,60660.0,0.192853]
[1726632710427,0.0913,60661.0,60660.0,0.028]
[1726632711629,0.0913,60661.0,60660.0,0.192853]
[1726632712079,0.10121191,60661.0,60660.0,0.192853]
[1726632713524,0.10121191,60661.0,60660.0,0.028]
[1726632715168,0.10285791,60661.0,60660.0,0.192853]
[1726632715640,0.01155791,60661.0,60660.0,0.192853]
[1726632721210,0.01155791,60661.0,60660.0,0.028]
[1726632722703,0.01155791,60661.0,60660.0,0.15178987]
[1726632722938,0.01109606,60661.0,60660.0,0.15179308]
[1726632723203,0.01109606,60661.0,60660.0,0.028]
[1726632723906,0.01109606,60661.0,60660.0,0.15179609]
[1726632724124,0.01109606,60661.0,60660.0,0.028]
[1726632724368,0.01109606,60661.0,60660.0,0.15179284]
[1726632724582,0.01109606,60661.0,60660.0,0.028]
[1726632725539,0.01109606,60661.0,60660.0,0.014]
[1726632725933,0.01109606,60661.0,60660.0,0.013]
[1726632726188,0.01109606,60661.0,60660.0,0.027]
[1726632727176,0.01109606,60661.0,60660.0,0.014]
[1726632727436,0.01109606,60661.0,60660.0,0.027]
[1726632727678,0.01109606,60661.0,60660.0,0.15079437]
[1726632730199,1.43849425,60661.0,60660.0,0.10127338]
[1726632730441,1.50597498,60661.0,60660.0,0.027]
[1726632730677,1.83567598,60661.0,60660.0,0.027]
[1726632731163,1.84529237,60661.0,60660.0,0.027]
[1726632731671,1.84529237,60661.0,60660.0,0.013]
[1726632731929,1.84529237,60661.0,60659.0,0.000823]
[1726632731930,1.176971,60660.0,60659.0,0.000823]
[1726632732223,1.74852567,60660.0,60659.0,0.000823]
[1726632732479,1.75956106,60660.0,60659.0,0.000823]
[1726632733476,1.78543025,60660.0,60659.0,0.000823]
[1726632734978,1.75956106,60660.0,60659.0,0.000823]
[1726632744566,2.12126706,60660.0,60659.0,0.000823]
[1726632745055,2.29516706,60660.0,60659.0,0.000823]
[1726632745516,2.29716706,60660.0,60659.0,0.000823]
[1726632745763,2.32303962,60660.0,60659.0,0.000823]
[1726632746046,2.32203962,60660.0,60659.0,0.001823]
[1726632746281,2.38403962,60660.0,60659.0,0.001823]
[1726632746544,2.38403962,60660.0,60659.0,0.000823]
[1726632746545,2.38303962,60660.0,60659.0,0.000823]
[1726632746801,2.38403962,60660.0,60659.0,0.001823]
[1726632748064,2.38203962,60660.0,60659.0,0.001823]
[1726632748289,2.38203962,60660.0,60659.0,0.002823]
[1726632748989,2.38403962,60660.0,60659.0,0.002823]
[1726632753351,1.80571419,60648.0,60647.0,0.000823]
[1726632753572,1.92826175,60648.0,60647.0,0.000823]
[1726632753800,1.93907905,60648.0,60647.0,0.000823]
[1726632754813,2.27285005,60648.0,60647.0,0.000823]
[1726632755077,2.47675005,60648.0,60647.0,0.000823]
[1726632755575,2.47775005,60648.0,60647.0,0.000823]
[1726632756082,2.53675005,60648.0,60647.0,0.000823]
[1726632756314,0.38675219,60640.0,60639.0,0.000823]
[1726632756526,1.52343239,60640.0,60639.0,0.000823]
[1726632756743,1.86400224,60640.0,60639.0,0.000823]
[1726632757188,1.88988214,60640.0,60639.0,0.000823]
[1726632757841,1.90272891,60640.0,60639.0,0.000823]
[1726632758088,1.89972891,60640.0,60639.0,0.000823]
[1726632758522,1.90472891,60640.0,60639.0,0.001823]
[1726632758748,1.90472891,60640.0,60639.0,0.000823]
[1726632758976,1.91072891,60640.0,60639.0,0.001823]
[1726632760588,1.91572891,60640.0,60639.0,0.001823]
[1726632762149,1.94572891,60640.0,60639.0,0.001823]
[1726632762904,1.91984901,60640.0,60639.0,0.001823]
[1726632766303,1.94572889,60640.0,60639.0,0.001823]
[1726632768709,1.3871687,60640.0,60639.0,0.001823]
[1726632768959,0.02675485,60640.0,60639.0,1.18087186]
[1726632769208,0.02380931,60640.0,60639.0,1.22838588]
[1726632769446,0.016,60640.0,60639.0,1.18087186]
[1726632769690,0.01,60640.0,60639.0,1.2782863]
[1726632769933,0.0258783,60652.0,60644.0,0.164896]
[1726632770173,0.0258783,60652.0,60645.0,0.164894]
[1726632771174,0.0258783,60652.0,60646.0,0.16489]
[1726632772153,0.0268783,60652.0,60645.0,0.009]
[1726632772386,0.0268783,60652.0,60645.0,0.175893]
[1726632772626,0.0278783,60652.0,60646.0,0.009]
[1726632772893,0.001,60652.0,60646.0,0.009]
[1726632773114,0.002,60652.0,60646.0,0.02]
[1726632776129,0.02587029,60651.0,60646.0,0.02]
[1726632777753,0.02587029,60651.0,60646.0,0.011]
[1726632778017,0.02687029,60651.0,60646.0,0.009]
[1726632778273,0.02787029,60651.0,60646.0,0.021]
[1726632780105,0.02787029,60651.0,60646.0,0.17161153]
[1726632780601,0.02787029,60651.0,60649.0,0.164882]
[1726632780828,0.02787029,60651.0,60650.0,0.16488]
[1726632782151,0.02687029,60651.0,60650.0,0.16488]
[1726632782374,0.02687029,60651.0,60649.0,0.176881]
[1726632782623,0.02787029,60651.0,60650.0,0.17388]
[1726632782837,0.001,60651.0,60650.0,0.17388]
[1726632783282,0.002,60651.0,60650.0,0.18588]
[1726632783949,0.001,60651.0,60650.0,0.17688]
[1726632784165,0.002,60651.0,60650.0,0.17688]
[1726632784828,0.003,60651.0,60650.0,0.51564]
[1726632786205,0.004648,60651.0,60650.0,0.51564]
[1726632786865,0.004648,60651.0,60650.0,0.8454]
[1726632787089,0.004648,60651.0,60650.0,0.51564]
[1726632790948,0.004648,60651.0,60650.0,0.8454]
[1726632792809,0.004648,60651.0,60650.0,1.10085367]
[1726632793026,0.004648,60651.0,60650.0,1.32340457]
[1726632793263,0.004648,60651.0,60650.0,1.32540457]
[1726632793463,0.003648,60651.0,60650.0,1.28205587]
[1726632793693,0.002648,60651.0,60650.0,1.28276976]
[1726632793974,0.002648,60651.0,60650.0,1.27976976]
[1726632794196,0.002648,60651.0,60650.0,1.28176976]
[1726632794422,0.003648,60651.0,60650.0,1.28105598]
[1726632794669,0.003648,60651.0,60650.0,1.27005598]
[1726632794885,0.001648,60651.0,60650.0,1.92057598]
[1726632795108,0.002648,60651.0,60650.0,1.94357598]
[1726632795321,0.002648,60651.0,60650.0,1.89437367]
[1726632795539,0.001648,60651.0,60650.0,1.93457598]
[1726632795760,0.001648,60651.0,60650.0,1.94517714]
[1726632796031,0.001648,60651.0,60650.0,1.88537367]
[1726632796266,0.001648,60651.0,60650.0,1.93455042]
[1726632796488,0.001648,60651.0,60650.0,1.88537367]
[1726632796946,0.002648,60651.0,60650.0,1.89937367]
[1726632797164,0.001648,60651.0,60650.0,1.88537367]
[1726632797393,0.002648,60651.0,60650.0,1.88537367]
[1726632798304,0.002648,60651.0,60650.0,1.89937367]
[1726632798789,0.002648,60651.0,60650.0,1.88537367]
[1726632799006,0.002648,60651.0,60650.0,1.89937367]
[1726632799701,0.002648,60651.0,60650.0,1.97317714]
[1726632799925,0.001646,60661.0,60660.0,0.262753]
[1726632800150,0.001646,60661.0,60660.0,0.65711471]
[1726632800392,0.001646,60661.0,60660.0,0.6538182]
[1726632801375,0.001646,60661.0,60660.0,1.3272302]
[1726632801593,0.001646,60661.0,60660.0,1.6569362]
[1726632802037,0.001646,60661.0,60660.0,2.1166422]
[1726632802481,0.001646,60661.0,60660.0,2.16577824]
[1726632803378,0.001646,60661.0,60660.0,2.17974592]
[1726632803595,0.001646,60661.0,60660.0,2.1306422]
[1726632804488,0.001646,60661.0,60660.0,2.20429778]
[1726632804943,0.001646,60661.0,60660.0,2.21426265]
[1726632805601,0.001646,60661.0,60660.0,2.23881451]
[1726632807421,0.001646,60661.0,60660.0,2.14060707]
[1726632807667,0.001646,60661.0,60660.0,2.26336637]
[1726632808378,0.001646,60661.0,60660.0,2.14060707]
[1726632811637,0.001646,60661.0,60660.0,2.28791823]
[1726632812555,0.001646,60661.0,60660.0,2.14060707]
[1726632814540,0.001646,60661.0,60660.0,2.3581212]
[1726632816639,0.001646,60661.0,60660.0,2.14060707]
[1726632823610,0.001646,60661.0,60660.0,2.28838564]
[1726632824034,0.001646,60661.0,60660.0,2.236524]
[1726632824483,0.001646,60661.0,60660.0,2.08874543]
[1726632827186,0.001646,60661.0,60660.0,2.14874543]
[1726632828959,0.001646,60661.0,60660.0,2.1660934]
[1726632830394,0.001646,60661.0,60660.0,2.31394336]
[1726632830631,0.001646,60661.0,60660.0,2.64364936]
[1726632831302,0.001646,60661.0,60660.0,2.31394336]
[1726632831817,0.001646,60661.0,60660.0,2.64364224]
[1726632832281,0.001646,60661.0,60660.0,2.49579228]
[1726632833402,0.001646,60661.0,60660.0,2.55562821]
[1726632835313,0.001646,60661.0,60660.0,2.77393792]
[1726632835769,0.001646,60661.0,60660.0,2.75659707]
[1726632835998,0.001646,60661.0,60660.0,2.77390031]
[1726632836434,0.001646,60661.0,60660.0,2.5555906]
[1726632838551,0.00062402,60666.0,60665.0,0.166839]
[1726632838786,0.0039479,60674.0,60665.0,0.166839]
[1726632838787,0.0039479,60674.0,60673.0,0.290017]